[Event "Sunway Sitges Chess Festival"]
[Date "2024.12.21"]
[White "Raczek, Krzysztof"]
[Black "Filgueiras, Nathan Felipe"]
[WhiteElo "2443"]
[BlackElo "2328"]
[Round "4.16"]
[Result "1-0"]
[TimeControl "40/5400+30:1800+30"]

1. e4 {[%clk 1:27:45]} 1... c5 {[%clk 1:28:40]} 2. Nf3 {[%clk 1:28:05]} 2... Nc6
{[%clk 1:29:06]} 3. Bb5 {[%clk 1:27:51]} 3... e6 {[%clk 1:28:34]} 4. Bxc6 {[%clk
1:28:12]} 4... bxc6 {[%clk 1:29:33]} 5. d3 {[%clk 1:28:38]} 5... Qc7 {[%clk
1:28:56]} 6. Nbd2 {[%clk 1:27:06]} 6... e5 {[%clk 1:23:03]} 7. b3 {[%clk
1:20:12]} 7... d6 {[%clk 1:23:16]} 8. Nc4 {[%clk 1:18:29]} 8... g6 {[%clk
1:20:03]} 9. Bb2 {[%clk 1:06:44]} 9... Bg7 {[%clk 1:20:48]} 10. Nfd2 {[%clk
1:05:56]} 10... f6 {[%clk 1:05:56]} 11. Ne3 {[%clk 0:56:27]} 11... Ne7 {[%clk
1:10:40]} 12. Qe2 {[%clk 0:53:25]} 12... Be6 {[%clk 1:08:57]} 13. h4 {[%clk
0:50:12]} 13... h5 {[%clk 0:53:02]} 14. O-O-O {[%clk 0:43:38]} 14... O-O-O
{[%clk 0:50:11]} 15. g3 {[%clk 0:42:03]} 15... Bh6 {[%clk 0:47:48]} 16. Rdf1
{[%clk 0:41:18]} 16... d5 {[%clk 0:45:25]} 17. f4 {[%clk 0:38:23]} 17... Rhf8
{[%clk 0:34:11]} 18. fxe5 {[%clk 0:34:56]} 18... fxe5 {[%clk 0:34:14]} 19. Kb1
{[%clk 0:28:43]} 19... c4 {[%clk 0:29:49]} 20. dxc4 {[%clk 0:27:51]} 20... d4
{[%clk 0:28:56]} 21. Nd1 {[%clk 0:27:32]} 21... Qa5 {[%clk 0:22:56]} 22. Nf3
{[%clk 0:24:11]} 22... Bg4 {[%clk 0:25:12]} 23. Qd3 {[%clk 0:14:59]} 23... Bxf3
{[%clk 0:17:55]} 24. Rxf3 {[%clk 0:21:55]} 24... Rxf3 {[%clk 0:18:20]} 25. Qxf3
{[%clk 0:22:21]} 25... d3 {[%clk 0:18:43]} 26. Nc3 {[%clk 0:14:45]} 26... d2
{[%clk 0:13:52]} 27. Na4 {[%clk 0:12:47]} 27... Qc7 {[%clk 0:06:31]} 28. Rd1
{[%clk 0:12:07]} 28... Qd6 {[%clk 0:04:16]} 29. Bc3 {[%clk 0:10:26]} 29... Ng8
{[%clk 0:05:09]} 30. c5 {[%clk 0:09:54]} 30... Qe6 {[%clk 0:04:55]} 31. Qe2
{[%clk 0:07:35]} 31... Kb7 {[%clk 0:03:08]} 32. Nb2 {[%clk 0:07:47]} 32... Nf6
{[%clk 0:01:57]} 33. Bxd2 {[%clk 0:04:38]} 33... Bxd2 {[%clk 0:01:47]} 34. Nc4
{[%clk 0:04:21]} 34... Qg4 {[%clk 0:01:07]} 35. Qxg4 {[%clk 0:04:03]} 35... hxg4
{[%clk 0:01:31]} 36. Rxd2 {[%clk 0:04:10]} 36... Rxd2 {[%clk 0:01:41]} 37. Nxd2
{[%clk 0:04:39]} 37... Nh5 {[%clk 0:02:04]} 38. Nf1 {[%clk 0:04:34]} 38... Nf6
{[%clk 0:01:43]} 39. Ne3 {[%clk 0:04:48]} 39... Kc7 {[%clk 0:01:20]} 40. Nc4
{[%clk 0:31:39]} 40... Nxe4 {[%clk 0:31:21]} 41. Nxe5 {[%clk 0:32:04]} 41...
Nxg3 {[%clk 0:29:22]} 42. Nxg6 {[%clk 0:28:56]} 42... Nf5 {[%clk 0:24:06]} 43.
h5 {[%clk 0:27:42]} 43... g3 {[%clk 0:23:36]} 44. Nf4 {[%clk 0:26:45]} 44... Kd7
{[%clk 0:22:58]} 45. Kc1 {[%clk 0:23:31]} 45... Ke7 {[%clk 0:22:22]} 46. Kd2
{[%clk 0:21:34]} 46... Kf6 {[%clk 0:22:42]} 47. Ke2 {[%clk 0:20:37]} 47... Nd4+
{[%clk 0:21:40]} 48. Kd3 {[%clk 0:12:59]} 48... Ne6 {[%clk 0:18:45]} 49. Ne2
{[%clk 0:13:06]} 49... g2 {[%clk 0:18:08]} 50. Ke3 {[%clk 0:13:32]} 50... Ng7
{[%clk 0:14:12]} 51. Kf2 {[%clk 0:11:17]} 51... Nxh5 {[%clk 0:14:36]} 52. Kxg2
{[%clk 0:10:01]} 52... Ke5 {[%clk 0:14:23]} 53. Kf3 {[%clk 0:07:22]} 53... Ng7
{[%clk 0:13:29]} 54. Nc3 {[%clk 0:04:26]} 54... Ne6 {[%clk 0:12:55]} 55. Ke3
{[%clk 0:03:42]} 55... Nxc5 {[%clk 0:13:20]} 56. Ne2 {[%clk 0:04:00]} 56... Kd5
{[%clk 0:11:30]} 57. Nf4+ {[%clk 0:04:20]} 57... Kd6 {[%clk 0:11:52]} 58. Kd4
{[%clk 0:04:44]} 58... Nd7 {[%clk 0:12:03]} 59. Nd3 {[%clk 0:05:09]} 59... c5+
{[%clk 0:11:24]} 60. Kc3 {[%clk 0:04:45]} 60... Nb6 {[%clk 0:09:27]} 61. Ne1
{[%clk 0:04:01]} 61... Kc6 {[%clk 0:09:17]} 62. Nf3 {[%clk 0:04:23]} 62... Nd5+
{[%clk 0:09:10]} 63. Kb2 {[%clk 0:04:43]} 63... Nb6 {[%clk 0:09:05]} 64. Nd2
{[%clk 0:04:59]} 64... Kb5 {[%clk 0:08:50]} 65. Ne4 {[%clk 0:03:37]} 65... Kc6
{[%clk 0:08:53]} 66. Nc3 {[%clk 0:03:53]} 66... Nc8 {[%clk 0:08:00]} 67. Kc1
{[%clk 0:03:47]} 67... Nd6 {[%clk 0:07:59]} 68. Kd2 {[%clk 0:04:02]} 68... Nc8
{[%clk 0:07:52]} 69. Kd3 {[%clk 0:04:22]} 69... Nd6 {[%clk 0:07:08]} 70. Ne4
{[%clk 0:04:38]} 70... Nf7 {[%clk 0:07:00]} 71. Nd2 {[%clk 0:04:22]} 71... Ne5+
{[%clk 0:06:58]} 72. Ke4 {[%clk 0:04:43]} 72... Nf7 {[%clk 0:06:41]} 73. Nc4
{[%clk 0:05:05]} 73... Nd8 {[%clk 0:04:42]} 74. Ke5 {[%clk 0:04:50]} 74... Nf7+
{[%clk 0:04:31]} 75. Kf6 {[%clk 0:05:04]} 75... Nd8 {[%clk 0:03:05]} 76. Ke7
{[%clk 0:05:07]} 76... Kc7 {[%clk 0:03:27]} 77. Na5 {[%clk 0:05:13]} 77... Kb6
{[%clk 0:01:59]} 78. Kxd8 {[%clk 0:02:41]} 78... Kxa5 {[%clk 0:02:27]} 79. Kc7
{[%clk 0:00:51]} 79... Kb5 {[%clk 0:01:21]} 80. Kd6 {[%clk 0:00:37]} 80... Kb4
{[%clk 0:00:45]} 81. Kd5 {[%clk 0:00:34]} 81... a5 {[%clk 0:00:34]} 82. a4
{[%clk 0:00:43]} 1-0

[Variant "Standard"]
[Site "Europe Echecs"]

[Event "Sunway Sitges Chess Festival"]
[Date "2024.12.21"]
[White "Brzezina, Piotr"]
[Black "Makkar, Rajat"]
[WhiteElo "2274"]
[BlackElo "2433"]
[Round "4.17"]
[Result "1-0"]
[TimeControl "40/5400+30:1800+30"]

1. e4 {[%clk 1:28:04]} 1... e5 {[%clk 1:25:41]} 2. Nf3 {[%clk 1:28:20]} 2... Nc6
{[%clk 1:25:58]} 3. Bc4 {[%clk 1:28:44]} 3... Bc5 {[%clk 1:26:09]} 4. d3 {[%clk
1:29:07]} 4... h6 {[%clk 1:26:29]} 5. c3 {[%clk 1:28:54]} 5... Nf6 {[%clk
1:26:38]} 6. b4 {[%clk 1:29:11]} 6... Bb6 {[%clk 1:27:00]} 7. a4 {[%clk
1:29:19]} 7... a6 {[%clk 1:26:56]} 8. O-O {[%clk 1:28:17]} 8... O-O {[%clk
1:26:17]} 9. Nbd2 {[%clk 1:28:07]} 9... d6 {[%clk 1:24:41]} 10. Re1 {[%clk
1:25:53]} 10... Ne7 {[%clk 1:20:53]} 11. d4 {[%clk 1:24:30]} 11... Ng6 {[%clk
1:20:33]} 12. Bf1 {[%clk 1:23:25]} 12... c6 {[%clk 1:18:24]} 13. Qc2 {[%clk
1:15:31]} 13... Be6 {[%clk 1:14:36]} 14. h3 {[%clk 1:12:58]} 14... Nh5 {[%clk
1:06:51]} 15. a5 {[%clk 1:11:24]} 15... Ba7 {[%clk 1:06:40]} 16. dxe5 {[%clk
1:09:54]} 16... dxe5 {[%clk 1:05:22]} 17. c4 {[%clk 1:05:56]} 17... Qf6 {[%clk
1:03:29]} 18. c5 {[%clk 0:58:14]} 18... Rad8 {[%clk 1:02:18]} 19. Bb2 {[%clk
0:56:55]} 19... Bb8 {[%clk 0:57:47]} 20. Rad1 {[%clk 0:51:44]} 20... Nhf4 {[%clk
0:56:47]} 21. Qc3 {[%clk 0:45:26]} 21... Rd4 {[%clk 0:47:36]} 22. Nc4 {[%clk
0:24:04]} 22... Bxc4 {[%clk 0:46:24]} 23. Bxc4 {[%clk 0:24:24]} 23... Rfd8
{[%clk 0:45:39]} 24. Qb3 {[%clk 0:09:20]} 24... R4d7 {[%clk 0:32:34]} 25. Rxd7
{[%clk 0:17:59]} 25... Rxd7 {[%clk 0:33:03]} 26. Rd1 {[%clk 0:18:15]} 26... Qe7
{[%clk 0:29:37]} 27. Bc1 {[%clk 0:14:29]} 27... Kf8 {[%clk 0:27:56]} 28. g3
{[%clk 0:12:00]} 28... Nh5 {[%clk 0:27:49]} 29. Kg2 {[%clk 0:08:57]} 29... Nf6
{[%clk 0:28:01]} 30. Rxd7 {[%clk 0:08:37]} 30... Qxd7 {[%clk 0:28:19]} 31. Qd3
{[%clk 0:08:26]} 31... Qxd3 {[%clk 0:27:32]} 32. Bxd3 {[%clk 0:08:54]} 32... Ke7
{[%clk 0:27:54]} 33. Nd2 {[%clk 0:09:11]} 33... Nf8 {[%clk 0:27:41]} 34. Nc4
{[%clk 0:09:08]} 34... Ne6 {[%clk 0:27:55]} 35. Bb2 {[%clk 0:08:32]} 35... Nd7
{[%clk 0:28:24]} 36. h4 {[%clk 0:08:35]} 36... h5 {[%clk 0:27:59]} 37. Kf3
{[%clk 0:07:58]} 37... f6 {[%clk 0:27:28]} 38. Ke2 {[%clk 0:06:46]} 38... g5
{[%clk 0:23:50]} 39. Ne3 {[%clk 0:05:31]} 39... Ndf8 {[%clk 0:23:52]} 40. Nf5+
{[%clk 0:35:29]} 40... Kd7 {[%clk 0:53:11]} 41. Kf1 {[%clk 0:19:36]} 41... gxh4
{[%clk 0:49:36]} 42. Nxh4 {[%clk 0:19:03]} 42... Ng5 {[%clk 0:49:49]} 43. Ke2
{[%clk 0:19:06]} 43... Nfe6 {[%clk 0:47:03]} 44. Ke3 {[%clk 0:16:33]} 44... Ba7
{[%clk 0:47:03]} 45. Bc3 {[%clk 0:14:21]} 45... Ng7 {[%clk 0:41:43]} 46. Nf5
{[%clk 0:04:20]} 46... Nxf5+ {[%clk 0:37:33]} 47. exf5 {[%clk 0:04:48]} 47...
Ke7 {[%clk 0:37:55]} 48. Be2 {[%clk 0:04:34]} 48... Bb8 {[%clk 0:38:09]} 49.
Bxh5 {[%clk 0:04:43]} 49... Bc7 {[%clk 0:38:34]} 50. Bg4 {[%clk 0:04:41]} 50...
Bd8 {[%clk 0:36:10]} 51. f4 {[%clk 0:04:57]} 51... exf4+ {[%clk 0:35:28]} 52.
gxf4 {[%clk 0:05:25]} 52... Nf7 {[%clk 0:34:26]} 53. Be2 {[%clk 0:05:32]} 53...
Nh6 {[%clk 0:34:38]} 54. Ke4 {[%clk 0:05:58]} 54... Kd7 {[%clk 0:35:03]} 55. Bc4
{[%clk 0:06:19]} 55... Ng4 {[%clk 0:33:54]} 56. Kf3 {[%clk 0:06:34]} 56... Nh6
{[%clk 0:34:21]} 57. Be6+ {[%clk 0:06:58]} 57... Kc7 {[%clk 0:34:47]} 58. Ke4
{[%clk 0:06:25]} 1-0

[Variant "Standard"]
[Site "Europe Echecs"]

[Event "Sunway Sitges Chess Festival"]
[Date "2024.12.21"]
[White "Van Zyl-Rudd, Jack"]
[Black "Gormally, Daniel W"]
[WhiteElo "2268"]
[BlackElo "2424"]
[Round "4.18"]
[Result "1/2-1/2"]
[TimeControl "40/5400+30:1800+30"]

1. e4 {[%clk 1:22:48]} 1... c6 {[%clk 1:29:01]} 2. d4 {[%clk 1:22:15]} 2... d5
{[%clk 1:29:21]} 3. f3 {[%clk 1:22:12]} 3... dxe4 {[%clk 1:28:25]} 4. fxe4
{[%clk 1:22:35]} 4... e5 {[%clk 1:27:29]} 5. Nf3 {[%clk 1:22:58]} 5... Bg4
{[%clk 1:26:54]} 6. c3 {[%clk 1:22:56]} 6... Nd7 {[%clk 1:23:07]} 7. Nbd2 {[%clk
1:23:10]} 7... Qc7 {[%clk 1:17:41]} 8. Be2 {[%clk 1:21:42]} 8... Ngf6 {[%clk
1:16:13]} 9. O-O {[%clk 1:14:12]} 9... Be7 {[%clk 1:14:06]} 10. Nh4 {[%clk
1:03:25]} 10... Bxe2 {[%clk 1:11:25]} 11. Qxe2 {[%clk 1:03:53]} 11... g6 {[%clk
1:11:48]} 12. Nc4 {[%clk 0:59:08]} 12... b5 {[%clk 1:09:32]} 13. Nxe5 {[%clk
0:34:50]} 13... Nxe5 {[%clk 1:09:01]} 14. Bf4 {[%clk 0:35:19]} 14... Nfd7 {[%clk
1:07:06]} 15. dxe5 {[%clk 0:34:20]} 15... Qb6+ {[%clk 0:59:42]} 16. Be3 {[%clk
0:32:42]} 16... Bc5 {[%clk 1:00:07]} 17. Bxc5 {[%clk 0:32:16]} 17... Qxc5+
{[%clk 1:00:29]} 18. Qf2 {[%clk 0:25:31]} 18... Qxf2+ {[%clk 0:59:00]} 19. Rxf2
{[%clk 0:25:59]} 19... Nxe5 {[%clk 0:59:20]} 20. Nf3 {[%clk 0:26:14]} 20...
Nxf3+ {[%clk 0:56:34]} 21. gxf3 {[%clk 0:26:30]} 1/2-1/2

[Variant "Standard"]
[Site "Europe Echecs"]

[Event "Sunway Sitges Chess Festival"]
[Date "2024.12.21"]
[White "Dudognon, Thibault"]
[Black "Esplugas Esteve, Vicenc"]
[WhiteElo "2411"]
[BlackElo "2277"]
[Round "4.19"]
[Result "1-0"]
[TimeControl "40/5400+30:1800+30"]

1. e4 {[%clk 1:30:56]} 1... e6 {[%clk 1:30:54]} 2. d4 {[%clk 1:31:15]} 2... d5
{[%clk 1:31:10]} 3. e5 {[%clk 1:31:28]} 3... c5 {[%clk 1:31:35]} 4. c3 {[%clk
1:31:48]} 4... Nc6 {[%clk 1:32:00]} 5. Nf3 {[%clk 1:32:08]} 5... Nh6 {[%clk
1:32:23]} 6. Bxh6 {[%clk 1:30:48]} 6... gxh6 {[%clk 1:32:48]} 7. Bb5 {[%clk
1:31:10]} 7... Qb6 {[%clk 1:33:09]} 8. Qe2 {[%clk 1:31:30]} 8... a6 {[%clk
1:33:08]} 9. Bxc6+ {[%clk 1:30:30]} 9... bxc6 {[%clk 1:33:29]} 10. O-O {[%clk
1:29:05]} 10... a5 {[%clk 1:33:52]} 11. Qd2 {[%clk 1:29:02]} 11... Rb8 {[%clk
1:22:27]} 12. b3 {[%clk 1:26:56]} 12... Qa6 {[%clk 1:14:13]} 13. dxc5 {[%clk
1:23:18]} 13... Bxc5 {[%clk 1:14:32]} 14. Qxh6 {[%clk 1:11:06]} 14... Qd3 {[%clk
1:14:04]} 15. Qg7 {[%clk 1:04:42]} 15... Rf8 {[%clk 1:12:01]} 16. Nbd2 {[%clk
1:03:49]} 16... Rb7 {[%clk 1:03:35]} 17. Qg5 {[%clk 0:57:40]} 17... Be7 {[%clk
0:56:00]} 18. Qe3 {[%clk 0:57:02]} 18... Qg6 {[%clk 0:52:50]} 19. c4 {[%clk
0:51:16]} 19... c5 {[%clk 0:47:51]} 20. Rac1 {[%clk 0:45:54]} 20... Rc7 {[%clk
0:41:15]} 21. Rfd1 {[%clk 0:41:26]} 21... Rg8 {[%clk 0:39:20]} 22. g3 {[%clk
0:41:35]} 22... h5 {[%clk 0:38:23]} 23. Qf4 {[%clk 0:39:13]} 23... Qh7 {[%clk
0:35:35]} 24. h3 {[%clk 0:37:32]} 24... Bf8 {[%clk 0:30:24]} 25. cxd5 {[%clk
0:35:11]} 25... exd5 {[%clk 0:29:06]} 26. Ng5 {[%clk 0:29:35]} 26... Rxg5 {[%clk
0:27:46]} 27. Qxg5 {[%clk 0:29:47]} 27... Bxh3 {[%clk 0:26:06]} 28. Qf4 {[%clk
0:26:05]} 28... Bh6 {[%clk 0:22:29]} 29. Qa4+ {[%clk 0:26:17]} 29... Bd7 {[%clk
0:17:49]} 30. Qxa5 {[%clk 0:26:19]} 30... Rc8 {[%clk 0:18:14]} 31. Rxc5 {[%clk
0:17:38]} 31... Rxc5 {[%clk 0:18:38]} 32. Qxc5 {[%clk 0:18:07]} 32... Qd3 {[%clk
0:18:50]} 33. Qb4 {[%clk 0:18:19]} 33... Qc2 {[%clk 0:16:14]} 34. Qb8+ {[%clk
0:18:10]} 34... Ke7 {[%clk 0:14:45]} 35. Qd6+ {[%clk 0:17:22]} 35... Kd8 {[%clk
0:13:41]} 36. Qxh6 {[%clk 0:17:08]} 36... Qxd1+ {[%clk 0:14:07]} 37. Kh2 {[%clk
0:17:11]} 37... Be6 {[%clk 0:11:50]} 38. Qe3 {[%clk 0:16:38]} 38... Qg4 {[%clk
0:11:17]} 39. Nf3 {[%clk 0:15:55]} 39... Ke8 {[%clk 0:10:02]} 40. Qf4 {[%clk
0:44:40]} 40... Qg6 {[%clk 0:37:07]} 41. Nd4 {[%clk 0:43:07]} 41... Bc8 {[%clk
0:36:02]} 42. Qf6 {[%clk 0:40:00]} 42... Qxf6 {[%clk 0:30:56]} 43. exf6 {[%clk
0:40:26]} 43... Kd7 {[%clk 0:31:20]} 44. f4 {[%clk 0:40:13]} 44... Kd6 {[%clk
0:31:25]} 45. b4 {[%clk 0:40:38]} 45... Bd7 {[%clk 0:31:28]} 46. Kg2 {[%clk
0:40:45]} 46... Ba4 {[%clk 0:31:44]} 47. Kh3 {[%clk 0:40:57]} 47... Bd1 {[%clk
0:31:21]} 48. Kh4 {[%clk 0:41:19]} 48... Kd7 {[%clk 0:31:33]} 49. Kg5 {[%clk
0:41:40]} 49... Kd6 {[%clk 0:31:26]} 50. Kh6 {[%clk 0:41:52]} 50... Kd7 {[%clk
0:31:35]} 51. Kg7 {[%clk 0:42:15]} 51... Ke8 {[%clk 0:32:00]} 52. b5 {[%clk
0:42:35]} 1-0

[Variant "Standard"]
[Site "Europe Echecs"]

[Event "Sunway Sitges Chess Festival"]
[Date "2024.12.21"]
[White "Diaz Rosas, Julio Cesar"]
[Black "Liu, Yi"]
[WhiteElo "2401"]
[BlackElo "2261"]
[Round "4.20"]
[Result "1-0"]
[TimeControl "40/5400+30:1800+30"]

1. e4 {[%clk 1:30:28]} 1... e6 {[%clk 1:30:54]} 2. d4 {[%clk 1:30:50]} 2... d5
{[%clk 1:31:22]} 3. Nc3 {[%clk 1:30:45]} 3... Nf6 {[%clk 1:31:46]} 4. e5 {[%clk
1:31:08]} 4... Nfd7 {[%clk 1:32:13]} 5. f4 {[%clk 1:31:30]} 5... c5 {[%clk
1:32:42]} 6. Nf3 {[%clk 1:31:54]} 6... Nc6 {[%clk 1:33:09]} 7. a3 {[%clk
1:32:17]} 7... cxd4 {[%clk 1:21:59]} 8. Nb5 {[%clk 1:08:52]} 8... Be7 {[%clk
0:57:23]} 9. Nbxd4 {[%clk 1:32:32]} 9... O-O {[%clk 0:57:18]} 10. Be3 {[%clk
1:28:14]} 10... Nc5 {[%clk 0:56:35]} 11. b4 {[%clk 1:18:02]} 11... Ne4 {[%clk
0:55:52]} 12. Bd3 {[%clk 1:18:23]} 12... Nxd4 {[%clk 0:45:08]} 13. Bxd4 {[%clk
1:16:55]} 13... Bd7 {[%clk 0:42:43]} 14. O-O {[%clk 1:13:24]} 14... b5 {[%clk
0:40:33]} 15. Qe2 {[%clk 1:11:20]} 15... a5 {[%clk 0:37:21]} 16. c3 {[%clk
1:10:42]} 16... Qc7 {[%clk 0:40:16]} 17. Bxe4 {[%clk 1:08:03]} 17... dxe4 {[%clk
0:40:43]} 18. Qxe4 {[%clk 1:05:03]} 18... Ra6 {[%clk 0:31:01]} 19. Ng5 {[%clk
0:57:17]} 19... Bxg5 {[%clk 0:31:47]} 20. fxg5 {[%clk 0:51:01]} 20... Bc6 {[%clk
0:26:48]} 21. Qf4 {[%clk 0:45:06]} 21... Bd5 {[%clk 0:20:15]} 22. Bc5 {[%clk
0:43:53]} 22... Rd8 {[%clk 0:20:01]} 23. h4 {[%clk 0:52:43]} 23... axb4 {[%clk
0:17:43]} 24. cxb4 {[%clk 0:49:25]} 24... Qb7 {[%clk 0:19:42]} 25. Rf2 {[%clk
0:45:46]} 25... Rda8 {[%clk 0:15:07]} 26. h5 {[%clk 0:46:44]} 26... Be4 {[%clk
0:10:42]} 27. Rd2 {[%clk 0:40:14]} 27... Bd5 {[%clk 0:06:04]} 28. h6 {[%clk
0:39:10]} 28... Rxa3 {[%clk 0:12:28]} 29. Rxa3 {[%clk 0:39:34]} 29... Rxa3
{[%clk 0:12:55]} 30. hxg7 {[%clk 0:38:56]} 30... Ra2 {[%clk 0:10:28]} 31. Rxa2
{[%clk 0:38:32]} 31... Bxa2 {[%clk 0:10:57]} 32. g6 {[%clk 0:38:29]} 32... Bb1
{[%clk 0:10:44]} 33. Qh4 {[%clk 0:33:00]} 33... hxg6 {[%clk 0:04:37]} 34. Qh8#
{[%clk 0:34:45]} 1-0

[Variant "Standard"]
[Site "Europe Echecs"]

[Event "Sunway Sitges Chess Festival"]
[Date "2024.12.21"]
[White "Shukhman, Anna"]
[Black "Sofronie, Iulian"]
[WhiteElo "2245"]
[BlackElo "2368"]
[Round "4.21"]
[Result "0-1"]
[TimeControl "40/5400+30:1800+30"]

1. e4 {[%clk 1:30:59]} 1... e5 {[%clk 1:30:52]} 2. Nf3 {[%clk 1:31:27]} 2... Nc6
{[%clk 1:31:03]} 3. Bb5 {[%clk 1:31:20]} 3... a6 {[%clk 1:31:24]} 4. Ba4 {[%clk
1:32:19]} 4... Nge7 {[%clk 1:31:30]} 5. Nc3 {[%clk 1:32:42]} 5... Ng6 {[%clk
1:30:14]} 6. h4 {[%clk 1:27:17]} 6... h5 {[%clk 1:18:54]} 7. d4 {[%clk 1:00:01]}
7... exd4 {[%clk 0:54:30]} 8. Nxd4 {[%clk 0:57:57]} 8... Bb4 {[%clk 0:30:06]} 9.
Bg5 {[%clk 1:07:27]} 9... f6 {[%clk 0:26:57]} 10. Nxc6 {[%clk 0:54:05]} 10...
bxc6 {[%clk 0:21:53]} 11. Bd2 {[%clk 1:01:08]} 11... Qe7 {[%clk 0:30:47]} 12.
Qe2 {[%clk 1:00:46]} 12... a5 {[%clk 0:17:57]} 13. f4 {[%clk 0:56:46]} 13...
Bxc3 {[%clk 0:28:35]} 14. Bxc3 {[%clk 0:45:25]} 14... Nxf4 {[%clk 0:28:28]} 15.
Qf3 {[%clk 0:45:42]} 15... Nd5 {[%clk 0:28:10]} 16. O-O-O {[%clk 0:46:08]} 16...
Nxc3 {[%clk 0:28:31]} 17. Qxc3 {[%clk 0:46:32]} 17... Qb4 {[%clk 0:27:09]} 18.
Qg3 {[%clk 0:46:39]} 18... Qxa4 {[%clk 0:26:11]} 19. Qxg7 {[%clk 0:46:23]} 19...
Rf8 {[%clk 0:18:37]} 20. Rhf1 {[%clk 0:38:40]} 20... Qxa2 {[%clk 0:02:38]} 21.
Rxf6 {[%clk 0:31:14]} 21... Rg8 {[%clk 0:-2:-43]} 22. Qh6 {[%clk 0:24:07]} 22...
Rb8 {[%clk 0:12:24]} 23. Rf2 {[%clk 0:01:12]} 23... Qxb2+ {[%clk 0:05:39]} 24.
Kd2 {[%clk 0:00:-24]} 24... Qb4+ {[%clk 0:04:11]} 25. Kc1 {[%clk 0:07:08]} 25...
Qa3+ {[%clk 0:04:32]} 26. Kd2 {[%clk 0:06:55]} 26... Qd6+ {[%clk 0:04:52]} 0-1

[Variant "Standard"]
[Site "Europe Echecs"]

[Event "Sunway Sitges Chess Festival"]
[Date "2024.12.21"]
[White "Chanturia, Giorgi Mal"]
[Black "kiladze, Luka"]
[WhiteElo "2042"]
[BlackElo "2359"]
[Round "4.22"]
[Result "1/2-1/2"]
[TimeControl "40/5400+30:1800+30"]

1. e4 {[%clk 1:30:37]} 1... d6 {[%clk 1:30:45]} 2. d4 {[%clk 1:30:55]} 2... Nf6
{[%clk 1:31:11]} 3. Nc3 {[%clk 1:31:22]} 3... e5 {[%clk 1:31:38]} 4. Nf3 {[%clk
1:31:45]} 4... Nbd7 {[%clk 1:32:04]} 5. h3 {[%clk 1:32:07]} 5... Be7 {[%clk
1:32:16]} 6. g4 {[%clk 1:32:31]} 6... c6 {[%clk 1:25:43]} 7. a4 {[%clk 1:33:00]}
7... O-O {[%clk 1:22:21]} 8. g5 {[%clk 1:33:14]} 8... Nh5 {[%clk 1:21:28]} 9.
Be2 {[%clk 1:33:35]} 9... Re8 {[%clk 1:14:13]} 10. Rg1 {[%clk 1:30:30]} 10... g6
{[%clk 1:10:01]} 11. Be3 {[%clk 1:27:24]} 11... Bf8 {[%clk 1:05:03]} 12. Nh2
{[%clk 1:13:27]} 12... Nf4 {[%clk 0:57:26]} 13. Bxf4 {[%clk 1:11:47]} 13... exf4
{[%clk 0:57:54]} 14. Qd2 {[%clk 1:11:28]} 14... Bg7 {[%clk 0:56:43]} 15. O-O-O
{[%clk 0:51:56]} 15... c5 {[%clk 0:52:31]} 16. Nf3 {[%clk 0:51:23]} 16... cxd4
{[%clk 0:50:00]} 17. Nxd4 {[%clk 0:51:10]} 17... Nc5 {[%clk 0:49:46]} 18. Bb5
{[%clk 0:25:37]} 18... Nxe4 {[%clk 0:26:44]} 19. Qxf4 {[%clk 0:25:47]} 19...
Nxc3 {[%clk 0:27:04]} 20. Bxe8 {[%clk 0:26:04]} 20... Na2+ {[%clk 0:25:28]} 21.
Kb1 {[%clk 0:26:31]} 21... Qxe8 {[%clk 0:25:54]} 22. Kxa2 {[%clk 0:13:29]} 22...
Qxa4+ {[%clk 0:26:18]} 23. Kb1 {[%clk 0:13:59]} 23... Bf5 {[%clk 0:26:08]} 24.
Qxd6 {[%clk 0:09:12]} 24... Bxd4 {[%clk 0:15:25]} 25. Rxd4 {[%clk 0:09:41]}
25... Bxc2+ {[%clk 0:15:13]} 26. Kc1 {[%clk 0:10:10]} 26... Qa1+ {[%clk
0:15:34]} 27. Kxc2 {[%clk 0:10:38]} 27... Qxg1 {[%clk 0:15:30]} 28. Qf6 {[%clk
0:11:07]} 28... Rf8 {[%clk 0:08:35]} 29. Rd8 {[%clk 0:11:30]} 29... Qe1 {[%clk
0:07:20]} 30. Rxf8+ {[%clk 0:10:18]} 30... Kxf8 {[%clk 0:07:48]} 31. Qh8+ {[%clk
0:10:47]} 31... Ke7 {[%clk 0:08:08]} 32. Qf6+ {[%clk 0:11:12]} 32... Ke8 {[%clk
0:08:13]} 33. Qh8+ {[%clk 0:11:41]} 33... Kd7 {[%clk 0:08:23]} 34. Qd4+ {[%clk
0:12:07]} 34... Ke8 {[%clk 0:07:16]} 35. Qh8+ {[%clk 0:12:29]} 35... Ke7 {[%clk
0:05:19]} 36. Qf6+ {[%clk 0:12:58]} 36... Ke8 {[%clk 0:05:43]} 1/2-1/2

[Variant "Standard"]
[Site "Europe Echecs"]

[Event "Sunway Sitges Chess Festival"]
[Date "2024.12.21"]
[White "Ivanchuk, Vasyl"]
[Black "Coles, Ruben"]
[WhiteElo "2630"]
[BlackElo "2155"]
[Round "4.23"]
[Result "1-0"]
[TimeControl "40/5400+30:1800+30"]

1. e4 {[%clk 1:30:58]} 1... e6 {[%clk 1:30:57]} 2. d4 {[%clk 1:31:24]} 2... d5
{[%clk 1:31:24]} 3. Nc3 {[%clk 1:31:48]} 3... Nf6 {[%clk 1:31:51]} 4. e5 {[%clk
1:32:13]} 4... Nfd7 {[%clk 1:32:16]} 5. f4 {[%clk 1:32:40]} 5... c5 {[%clk
1:32:41]} 6. Nf3 {[%clk 1:33:06]} 6... Nc6 {[%clk 1:33:09]} 7. Be3 {[%clk
1:33:30]} 7... cxd4 {[%clk 1:33:35]} 8. Nxd4 {[%clk 1:33:55]} 8... Qb6 {[%clk
1:34:02]} 9. Qd2 {[%clk 1:29:13]} 9... Qxb2 {[%clk 1:34:22]} 10. Rb1 {[%clk
1:29:40]} 10... Qa3 {[%clk 1:34:46]} 11. Bb5 {[%clk 1:30:04]} 11... Nxd4 {[%clk
1:35:00]} 12. Bxd4 {[%clk 1:30:28]} 12... a6 {[%clk 1:35:14]} 13. Rb3 {[%clk
1:27:40]} 13... Qe7 {[%clk 1:34:41]} 14. Ba4 {[%clk 1:28:04]} 14... b5 {[%clk
1:34:38]} 15. Bxb5 {[%clk 1:27:57]} 15... axb5 {[%clk 1:34:58]} 16. Nxb5 {[%clk
1:28:23]} 16... Qd8 {[%clk 1:28:30]} 17. Qc3 {[%clk 1:22:46]} 17... Qa5 {[%clk
1:23:14]} 18. Nc7+ {[%clk 1:23:08]} 18... Kd8 {[%clk 1:22:19]} 19. Nxa8 {[%clk
1:23:31]} 19... Qxa8 {[%clk 1:22:20]} 20. Kd2 {[%clk 1:03:23]} 20... Qa4 {[%clk
1:06:36]} 21. Rhb1 {[%clk 0:57:03]} 21... Ba6 {[%clk 1:00:51]} 22. Rb7 {[%clk
0:39:32]} 22... Bxb7 {[%clk 0:41:10]} 23. Rxb7 {[%clk 0:39:50]} 23... Qc4 {[%clk
0:36:25]} 24. Qa5+ {[%clk 0:37:05]} 24... Ke8 {[%clk 0:35:03]} 25. Qa8+ {[%clk
0:32:45]} 25... Ke7 {[%clk 0:35:22]} 26. Qa7 {[%clk 0:33:09]} 26... Qc8 {[%clk
0:33:57]} 27. Rc7 {[%clk 0:31:07]} 27... Qd8 {[%clk 0:34:03]} 28. Qb7 {[%clk
0:30:42]} 28... Ke8 {[%clk 0:32:18]} 1-0

[Variant "Standard"]
[Site "Europe Echecs"]